fUST/lending_fUST_20241001
["ID","MTS","AMOUNT","RATE_DAILY","PERIOD"]
[339608683,1727739055352,-153.0,0.00019533,2]
[339608684,1727739055362,-153.0,0.00019533,2]
[339608685,1727739055373,-153.0,0.00019533,2]
[339608686,1727739055383,-153.0,0.00019533,2]
[339608687,1727739055394,-153.0,0.00019533,2]
[339608688,1727739055404,-153.0,0.00019533,2]
[339608689,1727739055414,-153.0,0.00019533,2]
[339608690,1727739055425,-153.0,0.00019533,2]
[339608691,1727739055435,-153.0,0.00019533,2]
[339608692,1727739055444,-153.0,0.00019533,2]
[339608693,1727739055453,-153.0,0.00019533,2]
[339608694,1727739055463,-306.0,0.00019533,2]
[339608695,1727739055473,-346.058754,0.00019668,2]
[339608696,1727739055482,-23114.43011553,0.0001999,2]
[339608697,1727739055668,-83381.98573804,0.0001999,2]
[339608716,1727740231937,-325.560499,0.00013151,2]
[339608717,1727740231947,-774.76,0.000147,2]
[339608718,1727740231958,-185.55672111,0.00015031,2]
[339609418,1727740246077,-314.44327889,0.00015031,2]
[339609420,1727740246087,-150.0,0.00016,2]
[339609422,1727740246097,-255.08476093,0.00017538,2]
[339609424,1727740246107,-153.0,0.00017615,2]
[339609426,1727740246116,-412.5224329,0.00017752,2]
[339609428,1727740246126,-300.0,0.00018999,2]
[339609430,1727740246135,-153.07849604,0.00019,2]
[339609432,1727740246145,-3405.0,0.00019,2]
[339609434,1727740246155,-680.0,0.00019,2]
[339609436,1727740246166,-358.0034,0.00019178,2]
[339609438,1727740246175,-325.560499,0.00019668,2]
[339609440,1727740246184,-93.30713224,0.00019869,2]
[339609443,1727740246196,-56.69286776,0.00019869,2]
[339609445,1727740246204,-175.235,0.000199,2]
[339609447,1727740246214,-791.37,0.000199,31]
[339609449,1727740246223,-791.37,0.000199,31]
[339609451,1727740246236,-791.37,0.000199,31]
[339609453,1727740246246,-791.37,0.000199,31]
[339609455,1727740246255,-791.37,0.000199,31]
[339609457,1727740246265,-791.37,0.000199,31]
[339609459,1727740246274,-791.37,0.000199,31]
[339609461,1727740246283,-791.37,0.000199,31]
[339609462,1727740246292,-791.37,0.000199,31]
[339609464,1727740246304,-791.37,0.000199,31]
[339609466,1727740246314,-791.37,0.000199,31]
[339609468,1727740246323,-791.37,0.000199,31]
[339609470,1727740246332,-791.37,0.000199,31]
[339609472,1727740246342,-791.37,0.000199,31]
[339609474,1727740246351,-791.37,0.000199,31]
[339609476,1727740246360,-791.37,0.000199,31]
[339609478,1727740246370,-11462.29857233,0.000199,2]
[339609480,1727740246379,-500.0,0.00019973,2]
[339609482,1727740246389,-500.0,0.00019973,2]
[339609484,1727740246398,-36210.61030257,0.0001998,3]
[339612536,1727740951933,200.0,0.00020094,120]
[339612537,1727741071309,200.0,0.00019184,120]
[339612540,1727741371910,200.0,0.00020918,120]
[339612564,1727741432033,-309.282474,0.00013151,2]
[339612565,1727741432044,-774.76,0.000148,2]
[339612566,1727741432054,-185.55672111,0.00015031,2]
[339612567,1727741432064,-516.1327671,0.00015163,2]
[339612568,1727741432074,-1825.83153432,0.00017748,2]
[339612569,1727741432087,-516.1327671,0.00017748,2]
[339612570,1727741432099,-658.03569858,0.00017748,2]
[339612571,1727741432110,-300.0,0.00017776,2]
[339612572,1727741432120,-180.49719043,0.00017777,2]
[339612573,1727741434491,-547.031611,0.00017777,2]
[339612634,1727741446216,-14514.46203687,0.00017777,2]
[339612635,1727741446226,-164.78952,0.00017845,2]
[339612636,1727741446236,-164.78952,0.00018775,2]
[339612637,1727741446245,-638.31892313,0.000189,2]
[339612638,1727741446257,-361.68107687,0.000189,2]
[339612639,1727741446267,-153.07849604,0.00019,2]
[339612640,1727741446278,-1703.0,0.00019,2]
[339612641,1727741446287,-420.0,0.000194,2]
[339612642,1727741446297,-309.282474,0.00019668,2]
[339612643,1727741446306,-209.3635278,0.00019724,2]
[339612644,1727741446316,-209.3635278,0.00019724,2]
[339612645,1727741446325,-209.3635278,0.00019724,2]
[339612646,1727741446335,-209.3635278,0.00019724,2]
[339612647,1727741446344,-209.3635278,0.00019724,2]
[339612648,1727741446354,-209.3635278,0.00019724,2]
[339612649,1727741446363,-209.3635278,0.00019724,2]
[339612650,1727741446372,-664.82,0.000199,31]
[339612652,1727741446382,-664.82,0.000199,31]
[339612654,1727741446392,-664.82,0.000199,31]
[339612656,1727741446404,-664.82,0.000199,31]
[339612658,1727741446414,-664.82,0.000199,31]
[339612661,1727741446424,-664.82,0.000199,31]
[339612663,1727741446434,-664.82,0.000199,31]
[339612664,1727741446443,-664.82,0.000199,31]
[339612665,1727741446454,-664.82,0.000199,31]
[339612666,1727741446464,-664.82,0.000199,31]
[339612667,1727741446473,-664.82,0.000199,31]
[339612668,1727741446482,-664.82,0.000199,31]
[339612669,1727741446492,-664.82,0.000199,31]
[339612670,1727741446501,-664.82,0.000199,31]
[339612671,1727741446512,-664.82,0.000199,31]
[339612672,1727741446522,-664.82,0.000199,31]
[339612673,1727741446531,-585.20077211,0.00019973,2]
[339612674,1727741446541,-175.235,0.00019973,2]
[339612675,1727741446551,-519.3136973,0.00019973,2]
[339612676,1727741446561,-500.0,0.00019973,2]
[339612677,1727741446571,-500.0,0.00019973,2]
[339612678,1727741446580,-1354.95163421,0.0001998,2]
[339612679,1727741446591,-2553.55500113,0.0001998,2]
[339612680,1727741446601,-25262.03715374,0.0001998,3]
[339612681,1727741491298,200.0,0.00019886,120]
[339612682,1727741611338,200.0,0.00020949,120]
[339612805,1727742640532,-278.354226,0.00013151,2]
[339612806,1727742640544,-697.29,0.000148,2]
[339612807,1727742640556,-158.09612735,0.0001496,2]
[339612808,1727742640568,-346.24967205,0.0001516,2]
[339612835,1727742643382,-640.9348181,0.0001516,2]
[339612836,1727742643399,-1512.81550985,0.0001516,2]
[339612837,1727742643411,-1128.25992116,0.0001516,2]
[339612844,1727742646257,-2.12855541,0.0001516,2]
[339612845,1727742646269,-166.6666688,0.000174,2]
[339612846,1727742646282,-190.332761,0.00017786,2]
[339612847,1727742646293,-205.888002,0.00018034,2]
[339612848,1727742646304,-205.888002,0.00018504,2]
[339612849,1727742646315,-209.3635278,0.00018902,2]
[339612850,1727742646327,-205.888002,0.00018974,2]
[339612851,1727742646338,-300.0,0.00018998,2]
[339612852,1727742646350,-153.07849604,0.00019,2]
[339612853,1727742646361,-851.0,0.00019,2]
[339612854,1727742646372,-209.3635278,0.00019078,2]
[339612855,1727742646384,-190.332761,0.00019156,2]
[339612856,1727742646395,-340.10323,0.00019178,2]
[339612857,1727742646407,-209.3635278,0.00019178,2]
[339612858,1727742646418,-209.3635278,0.00019231,2]
[339612859,1727742646430,-278.354226,0.00019668,2]
[339612860,1727742646442,-6359.86732512,0.00019773,2]
[339612861,1727742646453,-2344.15272637,0.0001987,2]
[339612862,1727742646465,-685.05,0.000199,31]
[339612863,1727742646476,-685.05,0.000199,31]
[339612864,1727742646486,-685.05,0.000199,31]
[339612865,1727742646501,-685.05,0.000199,31]
[339612866,1727742646512,-685.05,0.000199,31]
[339612867,1727742646523,-685.05,0.000199,31]
[339612868,1727742646535,-685.05,0.000199,31]
[339612869,1727742646546,-685.05,0.000199,31]
[339612870,1727742646557,-685.05,0.000199,31]
[339612871,1727742646572,-182.15990267,0.000199,31]
[339612909,1727743832409,-627.56,0.000149,2]
[339612911,1727743832419,-388.51872546,0.00018589,2]
[339612917,1727743832465,-746.60585568,0.00018589,2]
[339612954,1727743838631,-1864.87541886,0.00018589,2]
[339612956,1727743838641,-196.81447113,0.00018611,2]
[339612958,1727743838651,-157.974555,0.00018711,2]
[339612961,1727743838662,-167.79307508,0.000188,2]
[339613033,1727743846660,-41.57045272,0.000188,2]
[339613034,1727743846670,-209.3635278,0.000188,2]
[339613035,1727743846679,-250.518803,0.00018904,2]
[339613036,1727743846689,-153.07849604,0.00019,2]
[339613037,1727743846699,-84.76918425,0.00019,2]
[339613041,1727744556983,2062.97777778,0.0001,2]
[339613118,1727745038793,-564.8,0.000149,2]
[339613120,1727745038803,-156.0,0.0001584,2]
[339613122,1727745038813,-75.8653411,0.0001603,2]
[339613124,1727745038825,-80.1346589,0.0001603,2]
[339613126,1727745038835,-156.0,0.0001622,2]
[339613128,1727745038844,-156.0,0.0001641,2]
[339613130,1727745038854,-3212.771,0.00016683,2]
[339613132,1727745038863,-211.550786,0.00016774,2]
[339613134,1727745038873,-1276.77750057,0.00016819,2]
[339613136,1727745038883,-3000.0,0.0001682,2]
[339613138,1727745038892,-196.81447112,0.0001689,2]
[339613140,1727745038902,-156.0,0.0001699,2]
[339613142,1727745038911,-207.663247,0.00017199,2]
[339613144,1727745038922,-159.217795,0.00017362,2]
[339613146,1727745038932,-211.550786,0.00017459,2]
[339613148,1727745038942,-159.217795,0.00017542,2]
[339613150,1727745038951,-156.0,0.0001756,2]
[339613152,1727745038962,-159.217795,0.00017723,2]
[339613154,1727745038974,-159.217795,0.00017904,2]
[339613156,1727745038988,-159.217795,0.00018085,2]
[339613159,1727745039001,-156.0,0.0001814,2]
[339613161,1727745039011,-211.550786,0.00018144,2]
[339613163,1727745039022,-211.53606917,0.00018219,2]
[339613347,1727745040753,-88.46393083,0.00018219,2]
[339613349,1727745040762,-677.4758171,0.0001822,2]
[339613351,1727745040773,-209.3635278,0.00018256,2]
[339613353,1727745040782,-159.217795,0.00018266,2]
[339613355,1727745040792,-333.9578713,0.00018278,2]
[339613357,1727745040801,-250.0,0.0001858,3]
[339613359,1727745040811,-209.3635278,0.000186,2]
[339613362,1727745040820,-209.3635278,0.000186,2]
[339613364,1727745040829,-500.0,0.00018645,2]
[339613366,1727745040840,-500.0,0.00018645,2]
[339613368,1727745040849,-500.0,0.00018657,2]
[339613370,1727745040858,-500.0,0.00018657,2]
[339613372,1727745040869,-500.0,0.00018657,2]
[339613374,1727745040878,-7066.61254455,0.00018706,2]
[339613376,1727745040887,-156.0,0.0001871,2]
[339613378,1727745040897,-237.992862,0.00018904,2]
[339613380,1727745040906,-500.0,0.00018919,2]
[339613382,1727745040915,-500.0,0.00018919,2]
[339613384,1727745040924,-22617.92,0.00018999,2]
[339613386,1727745040934,-3557.76,0.00018999,2]
[339613388,1727745040943,-151.0,0.00018999,2]
[339613390,1727745040952,-151.0,0.00018999,2]
[339613392,1727745040964,-151.0,0.00018999,2]
[339613394,1727745040976,-151.0,0.00018999,2]
[339613396,1727745040988,-151.0,0.00018999,2]
[339613398,1727745040997,-151.0,0.00018999,2]
[339613400,1727745041008,-151.0,0.00018999,2]
[339613402,1727745041019,-151.0,0.00018999,2]
[339613404,1727745041027,-500.0,0.00018999,2]
[339613406,1727745041037,-206.69368,0.00018999,2]
[339613408,1727745041047,-151.0,0.00018999,2]
[339613410,1727745041058,-151.0,0.00018999,2]
[339613412,1727745041067,-206.69368,0.00018999,2]
[339613414,1727745041077,-151.0,0.00018999,2]
[339613416,1727745041086,-248.61123582,0.00018999,2]
[339613418,1727745041098,-251.38876418,0.00018999,2]
[339613420,1727745041107,-151.0,0.00018999,2]
[339613422,1727745041116,-151.0,0.00018999,2]
[339613424,1727745041126,-250.0,0.00019,3]
[339613426,1727745041135,-153.07849604,0.00019,2]
[339613428,1727745041145,-15.53273978,0.0001915,2]
[339613928,1727745046188,-191.16094022,0.0001915,2]
[339613930,1727745046198,-151.0,0.0001915,2]
[339613932,1727745046207,-151.0,0.0001915,2]
[339613934,1727745046217,-206.69368,0.0001915,2]
[339613936,1727745046227,-151.0,0.0001915,2]
[339613938,1727745046237,-151.0,0.0001915,2]
[339613940,1727745046247,-151.0,0.0001915,2]
[339613942,1727745046256,-323.098068,0.00019178,2]
[339613944,1727745046266,-500.0,0.00019193,2]
[339613946,1727745046276,-500.0,0.00019193,2]
[339613948,1727745046286,-22617.92,0.00019273,2]
[339613950,1727745046296,-3557.76,0.00019273,2]
[339613953,1727745046307,-151.0,0.00019273,2]
[339613955,1727745046317,-151.0,0.00019273,2]
[339613957,1727745046326,-151.0,0.00019273,2]
[339613959,1727745046335,-198.516968,0.00019273,2]
[339613961,1727745046345,-151.0,0.00019273,2]
[339613963,1727745046355,-151.0,0.00019273,2]
[339613965,1727745046365,-151.0,0.00019273,2]
[339613967,1727745046375,-151.0,0.00019273,2]
[339613969,1727745046384,-151.0,0.00019273,2]
[339613971,1727745046394,-151.0,0.00019273,2]
[339613973,1727745046403,-151.0,0.00019273,2]
[339613975,1727745046413,-500.0,0.00019273,2]
[339613977,1727745046422,-206.69368,0.00019273,2]
[339613979,1727745046432,-151.0,0.00019273,2]
[339613981,1727745046441,-206.69368,0.00019273,2]
[339613983,1727745046451,-151.0,0.00019273,2]
[339613985,1727745046460,-500.0,0.00019273,2]
[339613987,1727745046469,-151.0,0.00019273,2]
[339613989,1727745046479,-151.0,0.00019273,2]
[339613991,1727745046490,-206.69368,0.00019287,2]
[339613993,1727745046500,-215.864732,0.00019287,2]
[339613995,1727745046509,-206.69368,0.00019287,2]
[339613997,1727745046518,-151.0,0.00019287,2]
[339613999,1727745046528,-151.0,0.00019287,2]
[339614001,1727745046537,-151.0,0.00019287,2]
[339614003,1727745046547,-182.91821944,0.00019447,2]
[339614005,1727745046556,-500.0,0.00019467,2]
[339614007,1727745046566,-259.55254249,0.00019467,2]
[339614009,1727745046575,-369.88,0.00019527,3]
[339614011,1727745046584,-184.94,0.00019527,3]
[339614013,1727745046594,-554.82,0.00019527,3]
[339614015,1727745046603,-2344.07695396,0.00019533,2]
[339614017,1727745046612,-231.986511,0.00019533,2]
[339614019,1727745046623,-259.045728,0.00019533,2]
[339614021,1727745046632,-151.0,0.00019533,2]
[339614023,1727745046642,-151.0,0.00019533,2]
[339614025,1727745046652,-151.0,0.00019533,2]
[339614027,1727745046663,-151.0,0.00019533,2]
[339614029,1727745046672,-151.0,0.00019533,2]
[339614030,1727745046681,-151.0,0.00019533,2]
[339614032,1727745046690,-151.0,0.00019533,2]
[339614034,1727745046700,-151.0,0.00019533,2]
[339614036,1727745046709,-151.0,0.00019533,2]
[339614038,1727745046719,-206.69368,0.00019533,2]
[339614040,1727745046728,-206.69368,0.00019533,2]
[339614042,1727745046739,-254.126655,0.00019533,2]
[339614043,1727745046749,-151.0,0.00019533,2]
[339614045,1727745046759,-281.860226,0.00019533,2]
[339614048,1727745046768,-182.91821944,0.00019535,2]
[339614050,1727745046778,-206.69368,0.00019537,2]
[339614052,1727745046787,-206.69368,0.00019537,2]
[339614053,1727745046797,-151.0,0.00019537,2]
[339614055,1727745046806,-35463.3386677,0.00019537,3]
[339614057,1727745046815,-214.78661,0.00019547,2]
[339614059,1727745046825,-151.0,0.00019547,2]
[339614061,1727745046834,-151.0,0.00019547,2]
[339614063,1727745046844,-22617.92,0.00019547,2]
[339614065,1727745046853,-3557.76,0.00019547,2]
[339614067,1727745046864,-151.0,0.00019547,2]
[339614069,1727745046874,-295.651224,0.00019547,2]
[339614071,1727745046883,-151.0,0.00019547,2]
[339614073,1727745046893,-500.0,0.00019547,2]
[339614075,1727745046902,-206.69368,0.00019547,2]
[339614077,1727745046912,-206.69368,0.00019547,2]
[339614079,1727745046921,-500.0,0.00019547,2]
[339614082,1727745046930,-151.0,0.00019547,2]
[339614083,1727745046940,-200.53605985,0.0001955,3]
[339614084,1727745046950,-206.69368,0.00019561,2]
[339614085,1727745046959,-206.69368,0.00019561,2]
[339614086,1727745046969,-151.0,0.00019561,2]
[339614088,1727745046982,-182.91821944,0.00019623,2]
[339614090,1727745046993,-156.66465278,0.00019633,2]
[339614092,1727745047002,-500.0,0.00019633,2]
[339614094,1727745047013,-544.7,0.00019633,2]
[339614096,1727745047022,-500.0,0.00019633,2]
[339614098,1727745047032,-315.64,0.00019633,2]
[339614100,1727745047041,-209.83277342,0.00019633,2]
[339614101,1727745047051,-500.30875761,0.00019633,2]
[339614104,1727745047061,-500.0,0.00019633,2]
[339614106,1727745047072,-500.0,0.00019633,2]
[339614108,1727745047082,-500.0,0.00019633,2]
[339614109,1727745047092,-500.0,0.00019633,2]
[339614111,1727745047102,-500.0,0.00019633,2]
[339614113,1727745047112,-151.0,0.00019633,2]
[339614115,1727745047122,-500.0,0.00019633,2]
[339614117,1727745047132,-500.0,0.00019633,2]
[339614119,1727745047142,-500.0,0.00019633,2]
[339614121,1727745047151,-500.0,0.00019633,2]
[339614123,1727745047161,-584.69,0.00019633,2]
[339614125,1727745047171,-500.0,0.00019633,2]
[339614127,1727745047182,-151.0,0.00019633,2]
[339614129,1727745047191,-151.0,0.00019633,2]
[339614131,1727745047201,-500.0,0.00019633,2]
[339614133,1727745047210,-151.0,0.00019633,2]
[339614135,1727745047220,-201.170224,0.00019633,2]
[339614137,1727745047230,-500.0,0.00019633,2]
[339614139,1727745047241,-500.0,0.00019633,2]
[339614141,1727745047251,-500.0,0.00019633,2]
[339614144,1727745047260,-500.0,0.00019633,2]
[339614145,1727745047271,-500.0,0.00019633,2]
[339614147,1727745047280,-500.0,0.00019633,2]
[339614150,1727745047290,-500.0,0.00019633,2]
[339614152,1727745047300,-500.0,0.00019633,2]
[339614154,1727745047309,-500.0,0.00019633,2]
[339614156,1727745047318,-157.004364,0.00019633,2]
[339614158,1727745047328,-157.004364,0.00019633,2]
[339614160,1727745047339,-151.0,0.00019633,2]
[339614162,1727745047348,-168.93677,0.00019633,2]
[339614164,1727745047357,-168.93677,0.00019633,2]
[339614166,1727745047367,-151.0,0.00019633,2]
[339614168,1727745047376,-151.0,0.00019633,2]
[339614170,1727745047385,-500.0,0.00019633,2]
[339614171,1727745047394,-151.0,0.00019633,2]
[339614173,1727745047404,-500.0,0.00019633,2]
[339614175,1727745047413,-151.0,0.00019633,2]
[339614177,1727745047422,-151.0,0.00019633,2]
[339614179,1727745047432,-151.0,0.00019633,2]
[339614181,1727745047442,-528.8422405,0.00019633,2]
[339614183,1727745047451,-151.0,0.00019633,2]
[339614185,1727745047461,-151.0,0.00019633,2]
[339614187,1727745047471,-712.59,0.00019633,2]
[339614189,1727745047480,-151.0,0.00019633,2]
[339614191,1727745047490,-151.0,0.00019633,2]
[339614193,1727745047499,-151.0,0.00019633,2]
[339614195,1727745047509,-151.0,0.00019633,2]
[339614197,1727745047518,-500.0,0.00019633,2]
[339614198,1727745047527,-500.0,0.00019633,2]
[339614200,1727745047537,-500.0,0.00019633,2]
[339614203,1727745047546,-151.0,0.00019633,2]
[339614204,1727745047555,-151.0,0.00019633,2]
[339614206,1727745047565,-151.0,0.00019633,2]
[339614208,1727745047574,-151.0,0.00019633,2]
[339614210,1727745047584,-151.0,0.00019633,2]
[339614212,1727745047593,-500.0,0.00019633,2]
[339614214,1727745047602,-500.0,0.00019633,2]
[339614216,1727745047612,-500.0,0.00019633,2]
[339614218,1727745047622,-500.0,0.00019633,2]
[339614220,1727745047633,-500.65076814,0.00019633,2]
[339614223,1727745047643,-151.0,0.00019633,2]
[339614224,1727745047652,-151.0,0.00019633,2]
[339614226,1727745047662,-500.0,0.00019633,2]
[339614228,1727745047672,-151.0,0.00019633,2]
[339614230,1727745047681,-151.0,0.00019633,2]
[339614232,1727745047691,-154.04156,0.00019633,2]
[339614234,1727745047701,-290.82643748,0.00019633,2]
[339614236,1727745047710,-500.0,0.00019633,2]
[339614238,1727745047719,-500.0,0.00019633,2]
[339614240,1727745047728,-500.0,0.00019633,2]
[339614242,1727745047739,-500.0,0.00019633,2]
[339614244,1727745047748,-500.0,0.00019633,2]
[339614246,1727745047757,-500.0,0.00019633,2]
[339614248,1727745047767,-163.07788247,0.00019633,2]
[339614250,1727745047776,-500.0,0.00019633,2]
[339614252,1727745047785,-500.0,0.00019633,2]
[339614254,1727745047795,-656.75,0.00019633,2]
[339614256,1727745047804,-206.69368,0.00019633,2]
[339614258,1727745047813,-206.69368,0.00019633,2]
[339614260,1727745047823,-531.29324683,0.00019633,2]
[339614262,1727745047832,-206.69368,0.00019633,2]
[339614264,1727745047841,-206.693684,0.00019633,2]
[339614266,1727745047851,-500.0,0.00019633,2]
[339614268,1727745047860,-586.75600671,0.00019633,2]
[339614270,1727745047869,-500.0,0.00019633,2]
[339614272,1727745047879,-151.0,0.00019633,2]
[339614274,1727745047888,-151.0,0.00019633,2]
[339614276,1727745047898,-500.0,0.00019633,2]
[339614278,1727745047907,-501.1310055,0.00019633,2]
[339614280,1727745047917,-500.0,0.00019633,2]
[339614282,1727745047927,-500.0,0.00019633,2]
[339614284,1727745047936,-500.0,0.00019633,2]
[339614286,1727745047946,-546.62,0.00019633,2]
[339614288,1727745047956,-500.54401001,0.00019633,2]
[339614290,1727745047965,-539.46395475,0.000197,2]
[339614292,1727745047976,-182.91821944,0.00019711,2]
[339614294,1727745047987,-500.0,0.00019741,2]
[339614296,1727745047996,-500.0,0.00019773,2]
[339614298,1727745048006,-54498.50983081,0.00019789,3]
[339614300,1727745048021,-1680.54497872,0.00019789,3]
[339614302,1727745048032,-257.97207789,0.00019789,3]
[339617365,1727746163460,233.1734188,0.00021,60]
[339617395,1727746232236,-154.11,0.00010959,2]
[339617396,1727746232243,-770.59,0.00010959,2]
[339617398,1727746232250,-508.32,0.000149,2]
[339617400,1727746232256,-201.78507496,0.000151,2]
[339617402,1727746232264,-156.0,0.000152,2]
[339617403,1727746232272,-171.003397,0.00015379,2]
[339617405,1727746232281,-156.0,0.0001548,2]
[339617407,1727746232287,-317.0314094,0.00015588,2]
[339617409,1727746232294,-171.003397,0.00015646,2]
[339617410,1727746232302,-156.0,0.0001575,2]
[339617412,1727746232309,-171.003397,0.00015913,2]
[339617414,1727746232315,-309.1433615,0.00016168,2]
[339617416,1727746232322,-171.003397,0.00016181,2]
[339617417,1727746232329,-284.345249,0.00016329,2]
[339617419,1727746232336,-201.78507496,0.0001648,2]
[339617421,1727746232343,-300.0,0.00016486,2]
[339617423,1727746232351,-300.0,0.00016486,2]
[339617424,1727746232358,-7995.9879268,0.00016487,2]
[339617426,1727746232364,-156.0,0.0001658,2]
[339617428,1727746232371,-156.0,0.0001741,2]
[339617430,1727746232379,-11179.78407109,0.00018,2]
[339617448,1727746238188,-24217.18707205,0.00018,2]
[339617449,1727746238314,-2618.50922035,0.00018,2]
[339617478,1727746240515,-48005.6216914,0.00018,2]
[339617479,1727746240526,-420.0,0.00018016,2]
[339617480,1727746240536,-300.0,0.00018135,2]
[339617481,1727746240546,-156.0,0.0001824,2]
[339617482,1727746240555,-2182.45709528,0.00018537,2]
[339617483,1727746240565,-1000.0,0.00018547,2]
[339617484,1727746240575,-182.91821944,0.00018554,2]
[339617485,1727746240585,-500.0,0.00018636,2]
[339617486,1727746240595,-500.0,0.00018636,2]
[339617487,1727746240605,-30868.32039,0.00018637,2]
[339617488,1727746240615,-1877.39220615,0.00018637,2]
[339617489,1727746240625,-184.94,0.00018637,3]
[339617490,1727746240634,-175.235,0.00018645,2]
[339617491,1727746240646,-30868.32039,0.00018645,2]
[339617492,1727746240656,-1877.39220615,0.00018645,2]
[339617493,1727746240666,-61736.6407799,0.00018646,2]
[339617494,1727746240676,-3754.7844123,0.00018646,2]
[339617495,1727746240685,-500.0,0.00018646,2]
[339617496,1727746240695,-500.0,0.00018646,2]
[339617497,1727746240705,-500.0,0.00018646,2]
[339617498,1727746240714,-500.0,0.00018646,2]
[339617499,1727746240724,-500.0,0.00018646,2]
[339617500,1727746240734,-500.0,0.00018646,2]
[339617501,1727746240743,-258.03028601,0.00018646,2]
[339617502,1727746240753,-500.0,0.00018646,2]
[339617503,1727746240763,-500.0,0.00018646,2]
[339617504,1727746240773,-214.42276182,0.00018646,2]
[339617505,1727746240783,-19816.92,0.00018646,2]
[339617506,1727746240793,-338.73790855,0.00018647,2]
[339617507,1727746240803,-638.38875028,0.00018647,2]
[339617508,1727746240813,-30868.32039,0.00018647,2]
[339617509,1727746240826,-1877.39220615,0.00018647,2]
[339617510,1727746240836,-151.0,0.00018647,2]
[339617511,1727746240846,-151.0,0.00018647,2]
[339617512,1727746240856,-152.043093,0.00018647,2]
[339617513,1727746240866,-152.043093,0.00018647,2]
[339617514,1727746240876,-1172.055201,0.00018647,2]
[339617515,1727746240886,-1172.055201,0.00018647,2]
[339617516,1727746240899,-3113.04,0.00018654,2]
[339617517,1727746240909,-151.0,0.00018654,2]
[339617518,1727746240919,-151.0,0.00018654,2]
[339617519,1727746240928,-151.0,0.00018654,2]
[339617520,1727746240938,-500.0,0.00018654,2]
[339617521,1727746240948,-500.0,0.00018654,2]
[339617522,1727746240958,-151.0,0.00018654,2]
[339617523,1727746240968,-151.0,0.00018654,2]
[339617524,1727746240978,-151.0,0.00018654,2]
[339617525,1727746240988,-151.0,0.00018654,2]
[339617526,1727746240998,-151.0,0.00018654,2]
[339617527,1727746241007,-151.0,0.00018654,2]
[339617528,1727746241017,-151.0,0.00018654,2]
[339617529,1727746241027,-151.0,0.00018654,2]
[339617530,1727746241038,-151.0,0.00018654,2]
[339617531,1727746241048,-151.0,0.00018654,2]
[339617532,1727746241060,-230.202717,0.00018654,2]
[339617533,1727746241071,-151.0,0.00018654,2]
[339617534,1727746241081,-230.202717,0.00018654,2]
[339617535,1727746241090,-151.0,0.00018654,2]
[339617536,1727746241100,-152.043093,0.00018654,2]
[339617537,1727746241110,-152.043093,0.00018654,2]
[339617538,1727746241120,-1172.055201,0.00018654,2]
[339617539,1727746241129,-500.0,0.00018654,2]
[339617540,1727746241139,-1172.055201,0.00018654,2]
[339617541,1727746241150,-500.0,0.00018654,2]
[339617542,1727746241160,-500.0,0.00018655,2]
[339617543,1727746241170,-500.0,0.00018655,2]